[Event "Fagernes Chess Open 2025"]
[Site "Fagernes"]
[Date "2025.04.16"]
[Round "5.10"]
[White "Jorgensen, Catherine"]
[Black "Engkvist, Tomas"]
[Result "0-1"]
[Annotator "NA RC"]
[ECO "C50"]
[WhiteElo "1609"]
[BlackElo "1969"]
[PlyCount "86"]
[EventDate "2025.04.12"]
[EventCountry "NOR"]
[SourceTitle "playchess.com"]
[Source "ChessBase"]
[SourceQuality "1"]
[TimeControl "40/6000+30:2400+30"]

1. e4 {[%emt 0:00:06]} e5 {[%emt 0:00:01]} 2. Nf3 {[%emt 0:00:07]} Nc6 {[%emt 0:00:01]} 3. Bc4 {[%emt 0:00:23]} Bc5 {[%emt 0:00:04]} 4. d4 {[%emt 0:00:16]} Bxd4 {[%emt 0:00:06]} 5. Nxd4 {[%emt 0:00:06]} Nxd4 {[%emt 0:00:11]} 6. Be3 {[%emt 0:00:06]} Nc6 {[%emt 0:00:25]} 7. Qg4 {[%emt 0:00:41]} Kf8 {[%emt 0:00:09]} 8. Qe2 {[%emt 0:03:29]} g6 {[%emt 0:00:35]} 9. Nc3 {[%emt 0:00:41]} d6 {[%emt 0:00:16]} 10. O-O {[%emt 0:02:23]} Kg7 {[%emt 0:00:04]} 11. f4 {[%emt 0:00:12]} f5 {[%emt 0:00:23]} 12. Rad1 {[%emt 0:05:00]} fxe4 {[%emt 0:00:20]} 13. Nxe4 {[%emt 0:01:21]} Bf5 {[%emt 0:00:29]} 14. Ng3 {[%emt 0:03:50]} Qf6 {[%emt 0:00:39]} 15. Nxf5+ {[%emt 0:03:46]} gxf5 {[%emt 0:06:24]} 16. fxe5 {[%emt 0:07:06]} Nxe5 {[%emt 0:00:00]} 17. Bd4 {[%emt 0:00:51]} Ne7 {[%emt 0:00:00]} 18. Bxe5 {[%emt 0:19:14]} Qxe5 {[%emt 0:00:00]} 19. Qxe5+ {[%emt 0:00:23]} dxe5 {[%emt 0:00:00]} 20. Rd7 {[%emt 0:00:07]} Kf6 {[%emt 0:00:00]} 21. Bb3 {[%emt 0:07:17]} Rac8 {[%emt 0:00:00]} 22. Rfd1 {[%emt 0:02:15]} h5 {[%emt 0:00:00]} 23. a4 {[%emt 0:05:17]} Nc6 {[%emt 0:00:00]} 24. Rf7+ {[%emt 0:01:54]} Kg6 {[%emt 0:00:00]} 25. Rdd7 {[%emt 0:03:57]} e4 {[%emt 0:00:00]} 26. Rg7+ {[%emt 0:00:56]} Kf6 {[%emt 0:00:00]} 27. Rgf7+ {[%emt 0:01:25]} Kg6 {[%emt 0:00:00]} 28. Rg7+ {[%emt 0:00:16]} Kh6 {[%emt 0:00:00]} 29. Rgf7 {[%emt 0:00:17]} Ne5 {[%emt 0:00:21]} 30. Rxc7 {[%emt 0:02:45]} Nxf7 {[%emt 0:00:33]} 31. Rxf7 {[%emt 0:00:05]} Rhe8 {[%emt 0:00:38]} 32. Rxf5 {[%emt 0:00:24]} e3 {[%emt 0:00:06]} 33. Rf1 {[%emt 0:00:42]} Rcd8 {[%emt 0:00:14]} 34. Re1 {[%emt 0:00:14]} Rd2 {[%emt 0:00:11]} 35. Bc4 {[%emt 0:02:39]} Rf8 {[%emt 0:00:21]} 36. h3 {[%emt 0:02:14]} Rff2 {[%emt 0:00:26]} 37. Rxe3 {[%emt 0:03:27]} Rxg2+ {[%emt 0:00:05]} 38. Kf1 {[%emt 0:00:05]} Rdf2+ {[%emt 0:00:08]} 39. Ke1 {[%emt 0:00:11]} Rxc2 {[%emt 0:00:02]} 40. Be2 {[%emt 0:01:05]} Rxb2 {[%emt 0:00:42]} 41. Re7 {[%emt 0:41:20]} Rgxe2+ {[%emt 0:40:07]} 42. Rxe2 {[%emt 0:00:10]} Rxe2+ {[%emt 0:00:03]} 43. Kxe2 {[%emt 0:00:09]} Kg5 {[%emt 0:00:03]} 0-1

[Event "Fagernes Chess Open 2025"]
[Site "Fagernes"]
[Date "2025.04.16"]
[Round "5.11"]
[White "Stokhaug, Jon Arne"]
[Black "Andersen, Even Jorstad"]
[Result "0-1"]
[Annotator "NA RC"]
[ECO "E19"]
[WhiteElo "1871"]
[BlackElo "1681"]
[PlyCount "84"]
[EventDate "2025.04.12"]
[EventCountry "NOR"]
[SourceTitle "playchess.com"]
[Source "ChessBase"]
[SourceQuality "1"]
[TimeControl "40/6000+30:2400+30"]

1. d4 {[%emt 0:00:07]} Nf6 {[%emt 0:00:39]} 2. Nf3 {[%emt 0:00:09]} e6 {[%emt 0:00:06]} 3. c4 {[%emt 0:00:08]} b6 {[%emt 0:00:06]} 4. g3 {[%emt 0:00:29]} Bb7 {[%emt 0:00:08]} 5. Bg2 {[%emt 0:00:05]} Be7 {[%emt 0:00:57]} 6. O-O {[%emt 0:00:31]} O-O {[%emt 0:00:05]} 7. Nc3 {[%emt 0:00:33]} Ne4 {[%emt 0:00:06]} 8. Qc2 {[%emt 0:02:09]} Nxc3 {[%emt 0:00:13]} 9. Qxc3 {[%emt 0:01:32]} f5 {[%emt 0:01:41]} 10. h4 {[%emt 0:05:29]} d6 {[%emt 0:06:20]} 11. Rd1 {[%emt 0:07:26]} Bf6 {[%emt 0:04:38]} 12. Qb3 {[%emt 0:03:20]} Qe7 {[%emt 0:01:19]} 13. Bg5 {[%emt 0:04:05]} Nd7 {[%emt 0:01:45]} 14. Rac1 {[%emt 0:05:41]} Rae8 {[%emt 0:01:50]} 15. Bxf6 {[%emt 0:01:14]} Rxf6 {[%emt 0:07:23]} 16. e3 {[%emt 0:05:48]} Kh8 {[%emt 0:00:46]} 17. Qa3 {[%emt 0:04:59]} a5 {[%emt 0:01:06]} 18. Qc3 {[%emt 0:02:09]} Be4 {[%emt 0:06:41]} 19. a3 {[%emt 0:02:34]} e5 {[%emt 0:03:24]} 20. Ng5 {[%emt 0:04:41]} Bxg2 {[%emt 0:03:52]} 21. Kxg2 {[%emt 0:00:13]} Rg6 {[%emt 0:02:05]} 22. d5 {[%emt 0:15:24]} e4 {[%emt 0:07:47]} 23. Ne6 {[%emt 0:04:43]} Rxe6 {[%emt 0:10:02]} 24. dxe6 {[%emt 0:00:17]} Qxe6 {[%emt 0:00:07]} 25. Qd2 {[%emt 0:04:09]} Ne5 {[%emt 0:01:41]} 26. b4 {[%emt 0:01:17]} axb4 {[%emt 0:11:23]} 27. axb4 {[%emt 0:00:16]} Qg6 {[%emt 0:00:43]} 28. Qe2 {[%emt 0:01:26]} Nf3 {[%emt 0:00:43]} 29. Rh1 {[%emt 0:00:32]} Qg4 {[%emt 0:03:58]} 30. Qd1 {[%emt 0:00:33]} h6 {[%emt 0:02:06]} 31. c5 {[%emt 0:01:51]} bxc5 {[%emt 0:02:35]} 32. bxc5 {[%emt 0:00:17]} dxc5 {[%emt 0:05:17]} 33. Qd7 {[%emt 0:02:12]} Ra8 {[%emt 0:04:54]} 34. Rxc5 {[%emt 0:03:17]} Nxh4+ {[%emt 0:02:30]} 35. Kh2 {[%emt 0:01:33]} Nf3+ {[%emt 0:02:39]} 36. Kg2 {[%emt 0:00:10]} Nh4+ {[%emt 0:00:05]} 37. Kh2 {[%emt 0:00:27]} Qf3 {[%emt 0:02:10]} 38. Rg1 {[%emt 0:05:16]} Qxf2+ {[%emt 0:02:48]} 39. Kh3 {[%emt 0:02:44]} Qxg1 {[%emt 0:01:31]} 40. gxh4 {[%emt 0:00:16]} Qg4+ {[%emt 0:00:40]} 41. Kh2 {[%emt 0:40:06]} Ra2+ {[%emt 0:40:08]} 42. Kh1 {[%emt 0:00:03]} Qg2# {[%emt 0:00:05]} 0-1

[Event "Fagernes Chess Open 2025"]
[Site "Fagernes"]
[Date "2025.04.16"]
[Round "5.12"]
[White "Vatneodegard, Marie"]
[Black "Yilmaz, Kazim"]
[Result "0-1"]
[Annotator "NA RC"]
[ECO "C65"]
[WhiteElo "1538"]
[BlackElo "1818"]
[PlyCount "112"]
[EventDate "2025.04.12"]
[EventCountry "NOR"]
[SourceTitle "playchess.com"]
[Source "ChessBase"]
[SourceQuality "1"]
[TimeControl "40/6000+30:2400+30"]

1. e4 {[%emt 0:00:05]} e5 {[%emt 0:00:05]} 2. Nf3 {[%emt 0:00:11]} Nc6 {[%emt 0:00:05]} 3. Bb5 {[%emt 0:00:31]} Nf6 {[%emt 0:00:16]} 4. O-O {[%emt 0:00:38]} Bc5 {[%emt 0:00:11]} 5. c3 {[%emt 0:01:37]} O-O {[%emt 0:00:22]} 6. d4 {[%emt 0:00:22]} exd4 {[%emt 0:00:21]} 7. cxd4 {[%emt 0:00:35]} Bb6 {[%emt 0:00:15]} 8. Nc3 {[%emt 0:02:03]} d6 {[%emt 0:00:08]} 9. h3 {[%emt 0:01:11]} h6 {[%emt 0:00:07]} 10. Re1 {[%emt 0:03:17]} Bd7 {[%emt 0:00:12]} 11. d5 {[%emt 0:05:23]} Ne5 {[%emt 0:00:14]} 12. Bxd7 {[%emt 0:02:43]} Qxd7 {[%emt 0:00:32]} 13. Nxe5 {[%emt 0:03:46]} dxe5 {[%emt 0:00:06]} 14. Qf3 {[%emt 0:00:33]} Nh7 {[%emt 0:00:37]} 15. Qg3 {[%emt 0:06:19]} Qd6 {[%emt 0:00:43]} 16. Be3 {[%emt 0:04:04]} f5 {[%emt 0:01:29]} 17. Bxb6 {[%emt 0:01:50]} axb6 {[%emt 0:00:14]} 18. Red1 {[%emt 0:02:04]} f4 {[%emt 0:00:20]} 19. Qg4 {[%emt 0:03:49]} Nf6 {[%emt 0:02:00]} 20. Qe6+ {[%emt 0:08:45]} Qxe6 {[%emt 0:00:10]} 21. dxe6 {[%emt 0:00:19]} c6 {[%emt 0:00:10]} 22. f3 {[%emt 0:01:27]} b5 {[%emt 0:00:48]} 23. e7 {[%emt 0:10:05]} Rfe8 {[%emt 0:00:16]} 24. Rd8 {[%emt 0:00:41]} Raxd8 {[%emt 0:00:17]} 25. exd8=Q Rxd8 {[%emt 0:00:05]} 26. Rd1 {[%emt 0:01:40]} Rxd1+ {[%emt 0:00:06]} 27. Nxd1 {[%emt 0:00:11]} Nd7 {[%emt 0:00:16]} 28. Kf2 {[%emt 0:00:12]} Kf7 {[%emt 0:00:15]} 29. Ke2 {[%emt 0:01:57]} Ke6 {[%emt 0:00:18]} 30. Nf2 {[%emt 0:01:26]} Kd6 {[%emt 0:00:26]} 31. Kd2 {[%emt 0:00:42]} Nc5 {[%emt 0:00:53]} 32. b4 {[%emt 0:09:23]} Nd7 {[%emt 0:00:47]} 33. Nd3 {[%emt 0:02:31]} b6 {[%emt 0:00:34]} 34. a3 {[%emt 0:01:27]} c5 {[%emt 0:01:15]} 35. Kc3 {[%emt 0:01:58]} Nf8 {[%emt 0:01:44]} 36. bxc5+ {[%emt 0:04:25]} bxc5 {[%emt 0:00:09]} 37. Nb2 {[%emt 0:05:36]} Ng6 {[%emt 0:00:20]} 38. a4 {[%emt 0:02:50]} bxa4 {[%emt 0:00:24]} 39. Nxa4 {[%emt 0:00:41]} Nh4 {[%emt 0:00:10]} 40. Kd2 {[%emt 0:03:16]} Nxg2 {[%emt 0:00:11]} 41. Nc3 {[%emt 0:40:57]} Ne3 {[%emt 0:40:37]} 42. Ke2 {[%emt 0:05:48]} g5 {[%emt 0:00:39]} 43. Kd2 {[%emt 0:03:52]} h5 {[%emt 0:00:20]} 44. Ne2 {[%emt 0:01:58]} g4 {[%emt 0:01:11]} 45. hxg4 {[%emt 0:03:46]} hxg4 {[%emt 0:00:10]} 46. fxg4 {[%emt 0:00:33]} Nxg4 {[%emt 0:00:06]} 47. Ng1 {[%emt 0:00:19]} Nf2 {[%emt 0:00:29]} 48. Nf3 {[%emt 0:02:09]} Nxe4+ {[%emt 0:00:09]} 49. Kd3 {[%emt 0:00:58]} Kd5 {[%emt 0:00:29]} 50. Ne1 {[%emt 0:00:53]} c4+ {[%emt 0:00:10]} 51. Kc2 {[%emt 0:00:41]} Ng5 {[%emt 0:00:29]} 52. Kc3 {[%emt 0:02:41]} f3 {[%emt 0:00:43]} 53. Nc2 {[%emt 0:00:00]} Ne4+ {[%emt 0:00:00]} 54. Kb2 {[%emt 0:00:00]} f2 {[%emt 0:00:00]} 55. Ne3+ {[%emt 0:00:00]} Kd4 {[%emt 0:00:00]} 56. Nf1 {[%emt 0:00:00]} Kd3 {[%emt 0:00:00]} 0-1

[Event "Fagernes Chess Open 2025"]
[Site "Fagernes"]
[Date "2025.04.16"]
[Round "5.13"]
[White "Ruud, Mikael"]
[Black "Bollestad, Leiv Ove"]
[Result "1-0"]
[Annotator "NA RC"]
[ECO "B32"]
[WhiteElo "1588"]
[BlackElo "1585"]
[PlyCount "105"]
[EventDate "2025.04.12"]
[EventCountry "NOR"]
[SourceTitle "playchess.com"]
[Source "ChessBase"]
[SourceQuality "1"]
[TimeControl "40/6000+30:2400+30"]

1. e4 {[%emt 0:00:09]} c5 {[%emt 0:00:18]} 2. Nf3 {[%emt 0:00:07]} Nc6 {[%emt 0:00:15]} 3. d4 {[%emt 0:00:08]} cxd4 {[%emt 0:00:15]} 4. Nxd4 {[%emt 0:00:06]} e5 {[%emt 0:00:12]} 5. Nf3 {[%emt 0:04:17]} Nf6 {[%emt 0:00:58]} 6. Bg5 {[%emt 0:03:07]} Qa5+ {[%emt 0:04:23]} 7. Bd2 {[%emt 0:01:13]} Qb6 {[%emt 0:02:02]} 8. Nc3 {[%emt 0:03:02]} Ng4 {[%emt 0:06:14]} 9. Qe2 {[%emt 0:03:00]} Bc5 {[%emt 0:01:38]} 10. Na4 {[%emt 0:05:11]} Bxf2+ {[%emt 0:07:11]} 11. Kd1 {[%emt 0:00:12]} Qa6 {[%emt 0:07:55]} 12. Qxa6 {[%emt 0:01:52]} bxa6 {[%emt 0:00:16]} 13. Bd3 {[%emt 0:01:19]} Bb6 {[%emt 0:06:04]} 14. Ke2 {[%emt 0:00:47]} Nd4+ {[%emt 0:02:24]} 15. Nxd4 {[%emt 0:00:46]} Bxd4 {[%emt 0:00:07]} 16. c3 {[%emt 0:01:47]} Bb6 {[%emt 0:00:07]} 17. Nxb6 {[%emt 0:03:30]} axb6 {[%emt 0:00:15]} 18. Bc4 {[%emt 0:00:51]} Bb7 {[%emt 0:02:43]} 19. Rhf1 {[%emt 0:01:32]} O-O {[%emt 0:00:49]} 20. Be3 {[%emt 0:00:46]} Bxe4 {[%emt 0:03:04]} 21. Bxb6 {[%emt 0:00:24]} Rab8 {[%emt 0:00:11]} 22. Bc5 {[%emt 0:00:37]} Rxb2+ {[%emt 0:00:42]} 23. Kd1 {[%emt 0:00:32]} Bxg2 {[%emt 0:04:54]} 24. Rg1 {[%emt 0:01:26]} Rfb8 {[%emt 0:00:36]} 25. Kc1 {[%emt 0:01:01]} a5 {[%emt 0:04:18]} 26. Bb3 {[%emt 0:04:23]} Re2 {[%emt 0:06:04]} 27. Bd1 {[%emt 0:00:47]} Bf3 {[%emt 0:03:43]} 28. Bxe2 {[%emt 0:00:36]} Bxe2 {[%emt 0:00:09]} 29. h3 {[%emt 0:03:21]} Nf6 {[%emt 0:00:23]} 30. Bd6 {[%emt 0:01:05]} e4 {[%emt 0:01:40]} 31. Bxb8 {[%emt 0:00:05]} d5 {[%emt 0:00:21]} 32. Kd2 {[%emt 0:00:10]} Bc4 {[%emt 0:00:35]} 33. Be5 {[%emt 0:00:07]} Nh5 {[%emt 0:00:31]} 34. Rab1 {[%emt 0:00:33]} f6 {[%emt 0:00:24]} 35. Bd4 {[%emt 0:00:20]} Bxa2 {[%emt 0:00:47]} 36. Ra1 {[%emt 0:00:04]} Bc4 {[%emt 0:00:09]} 37. Rxa5 {[%emt 0:00:05]} Kf7 {[%emt 0:00:36]} 38. Ra7+ {[%emt 0:00:22]} Ke6 {[%emt 0:00:19]} 39. Raxg7 {[%emt 0:00:19]} Nxg7 {[%emt 0:00:08]} 40. Rxg7 {[%emt 0:00:05]} f5 {[%emt 0:00:49]} 41. Rxh7 {[%emt 0:40:07]} f4 {[%emt 0:40:11]} 42. Rh6+ {[%emt 0:00:07]} Kf5 {[%emt 0:00:15]} 43. Rf6+ {[%emt 0:00:04]} Kg5 {[%emt 0:00:27]} 44. Be5 {[%emt 0:00:23]} f3 {[%emt 0:01:11]} 45. Ke3 {[%emt 0:00:12]} Kh4 {[%emt 0:01:46]} 46. Rh6+ {[%emt 0:00:18]} Kg5 {[%emt 0:00:06]} 47. Rh8 {[%emt 0:00:35]} Kf5 {[%emt 0:02:58]} 48. Bd4 {[%emt 0:00:09]} Bb5 {[%emt 0:02:33]} 49. h4 {[%emt 0:03:05]} Bd7 {[%emt 0:01:00]} 50. h5 {[%emt 0:00:42]} Be6 {[%emt 0:00:05]} 51. h6 {[%emt 0:00:19]} Kg6 {[%emt 0:00:14]} 52. h7 {[%emt 0:01:33]} Kh6 {[%emt 0:01:17]} 53. Re8 {[%emt 0:00:10]} 1-0

[Event "Fagernes Chess Open 2025"]
[Site "Fagernes"]
[Date "2025.04.16"]
[Round "5.14"]
[White "Gilsdottir, Sara"]
[Black "Lang, Gusztav Jr"]
[Result "0-1"]
[Annotator "NA RC"]
[ECO "A51"]
[WhiteElo "1738"]
[BlackElo "1729"]
[PlyCount "110"]
[EventDate "2025.04.12"]
[EventCountry "NOR"]
[SourceTitle "playchess.com"]
[Source "ChessBase"]
[SourceQuality "1"]
[TimeControl "40/6000+30:2400+30"]

1. d4 {[%emt 0:00:05]} Nf6 {[%emt 0:03:50]} 2. c4 {[%emt 0:00:11]} e5 {[%emt 0:01:05]} 3. d5 {[%emt 0:02:29]} Bb4+ {[%emt 0:01:17]} 4. Bd2 {[%emt 0:00:29]} Bxd2+ {[%emt 0:03:38]} 5. Nxd2 {[%emt 0:00:09]} e4 {[%emt 0:03:03]} 6. e3 {[%emt 0:00:23]} Qe7 {[%emt 0:01:01]} 7. g3 {[%emt 0:01:06]} a5 {[%emt 0:15:50]} 8. Bg2 {[%emt 0:01:15]} Na6 {[%emt 0:00:14]} 9. Ne2 {[%emt 0:00:48]} Nc5 {[%emt 0:05:49]} 10. O-O {[%emt 0:02:49]} d6 {[%emt 0:01:16]} 11. Qc2 {[%emt 0:01:49]} Bf5 {[%emt 0:05:53]} 12. Nc3 {[%emt 0:08:34]} O-O {[%emt 0:05:15]} 13. Nb3 {[%emt 0:05:24]} Nd3 {[%emt 0:04:32]} 14. Nc1 {[%emt 0:03:45]} Nb4 {[%emt 0:29:11]} 15. Qd2 {[%emt 0:04:38]} Rfe8 {[%emt 0:04:28]} 16. a3 {[%emt 0:03:39]} Na6 {[%emt 0:00:40]} 17. Nb3 {[%emt 0:07:54]} Qd7 {[%emt 0:02:44]} 18. Nb5 {[%emt 0:15:37]} a4 {[%emt 0:01:28]} 19. N3d4 {[%emt 0:02:31]} Bh3 {[%emt 0:09:53]} 20. Ne2 {[%emt 0:08:38]} Bxg2 {[%emt 0:00:00]} 21. Kxg2 {[%emt 0:00:06]} Nc5 {[%emt 0:00:00]} 22. Nbd4 {[%emt 0:02:18]} Nd3 {[%emt 0:00:00]} 23. Nc3 {[%emt 0:03:46]} Ne5 {[%emt 0:00:00]} 24. Qe2 {[%emt 0:03:18]} c5 {[%emt 0:00:00]} 25. Ndb5 {[%emt 0:04:46]} Nf3 {[%emt 0:00:48]} 26. Rad1 {[%emt 0:11:30]} Ng5 {[%emt 0:02:46]} 27. f3 {[%emt 0:05:37]} exf3+ {[%emt 0:02:15]} 28. Rxf3 {[%emt 0:00:07]} Qh3+ {[%emt 0:00:40]} 29. Kg1 {[%emt 0:02:23]} Nxf3+ {[%emt 0:00:32]} 30. Qxf3 {[%emt 0:00:06]} Ng4 {[%emt 0:00:16]} 31. Re1 {[%emt 0:05:17]} Qxh2+ {[%emt 0:01:06]} 32. Kf1 {[%emt 0:00:06]} Qh3+ {[%emt 0:03:03]} 33. Kg1 {[%emt 0:00:38]} Qh2+ {[%emt 0:00:01]} 34. Kf1 {[%emt 0:00:14]} Qh3+ {[%emt 0:00:03]} 35. Kg1 {[%emt 0:00:06]} Ne5 {[%emt 0:00:50]} 36. Qg2 {[%emt 0:01:55]} Qg4 {[%emt 0:00:48]} 37. Rf1 {[%emt 0:01:17]} Rad8 {[%emt 0:02:40]} 38. Ne4 {[%emt 0:01:27]} Nxc4 {[%emt 0:01:20]} 39. Rf4 {[%emt 0:01:25]} Qd1+ {[%emt 0:00:26]} 40. Rf1 {[%emt 0:01:12]} Qb3 {[%emt 0:00:45]} 41. Qf3 {[%emt 0:40:30]} Qxe3+ {[%emt 0:04:38]} 42. Qxe3 {[%emt 0:00:00]} Nxe3 {[%emt 0:00:48]} 43. Rf4 {[%emt 0:00:00]} Nxd5 {[%emt 0:01:12]} 44. Rh4 {[%emt 0:00:00]} f5 {[%emt 0:02:18]} 45. Nexd6 {[%emt 0:00:00]} Re1+ {[%emt 0:00:28]} 46. Kf2 {[%emt 0:00:00]} Rc1 {[%emt 0:04:49]} 47. Nxb7 {[%emt 0:00:00]} Rc2+ {[%emt 0:01:00]} 48. Ke1 {[%emt 0:00:00]} Re8+ {[%emt 0:00:32]} 49. Kd1 {[%emt 0:00:00]} Rxb2 {[%emt 0:00:34]} 50. N7d6 {[%emt 0:00:00]} Ree2 {[%emt 0:01:17]} 51. Nc4 {[%emt 0:00:00]} Ne3+ {[%emt 0:05:50]} 52. Nxe3 {[%emt 0:00:00]} Rxe3 {[%emt 0:00:28]} 53. Nc7 {[%emt 0:00:00]} Rxg3 {[%emt 0:00:40]} 54. Kc1 {[%emt 0:00:00]} Ra2 {[%emt 0:00:28]} 55. Kb1 {[%emt 0:00:00]} Rf2 {[%emt 0:01:02]} 0-1

[Event "Fagernes Chess Open 2025"]
[Site "Fagernes"]
[Date "2025.04.16"]
[Round "5.15"]
[White "Dybvik, Bjorn Noralf"]
[Black "Smedsrud, Morten S"]
[Result "1/2-1/2"]
[Annotator "NA RC"]
[ECO "C43"]
[WhiteElo "1686"]
[BlackElo "1699"]
[PlyCount "80"]
[EventDate "2025.04.12"]
[EventCountry "NOR"]
[SourceTitle "playchess.com"]
[Source "ChessBase"]
[SourceQuality "1"]
[TimeControl "40/6000+30:2400+30"]

1. e4 {[%emt 0:00:13]} e5 {[%emt 0:00:05]} 2. Nf3 {[%emt 0:00:14]} Nf6 {[%emt 0:00:05]} 3. Nxe5 {[%emt 0:00:58]} Nxe4 {[%emt 0:00:28]} 4. d4 {[%emt 0:01:35]} d5 {[%emt 0:08:10]} 5. Bd3 {[%emt 0:03:35]} Nd7 {[%emt 0:22:52]} 6. Nxd7 {[%emt 0:06:03]} Bxd7 {[%emt 0:06:56]} 7. O-O {[%emt 0:04:34]} Be6 {[%emt 0:09:11]} 8. Re1 {[%emt 0:06:52]} Nd6 {[%emt 0:01:51]} 9. Qf3 {[%emt 0:04:01]} Be7 {[%emt 0:01:13]} 10. Nc3 {[%emt 0:03:34]} c6 {[%emt 0:07:21]} 11. Be3 {[%emt 0:05:27]} Qd7 {[%emt 0:00:00]} 12. Qg3 {[%emt 0:04:44]} Bf6 {[%emt 0:07:50]} 13. Ne2 {[%emt 0:04:24]} O-O-O {[%emt 0:06:51]} 14. a4 {[%emt 0:04:09]} g5 {[%emt 0:02:01]} 15. f3 {[%emt 0:06:28]} h5 {[%emt 0:01:50]} 16. b4 {[%emt 0:04:51]} h4 {[%emt 0:04:24]} 17. Qf2 {[%emt 0:00:42]} Rh5 {[%emt 0:09:38]} 18. Rab1 {[%emt 0:03:09]} Bf5 {[%emt 0:02:05]} 19. b5 {[%emt 0:03:00]} Bxd3 {[%emt 0:00:45]} 20. bxc6 {[%emt 0:03:27]} Qf5 {[%emt 0:04:50]} 21. cxb7+ {[%emt 0:02:16]} Kb8 {[%emt 0:02:00]} 22. cxd3 {[%emt 0:01:14]} Qxd3 {[%emt 0:01:22]} 23. Red1 {[%emt 0:04:00]} Qa6 {[%emt 0:01:24]} 24. Qe1 {[%emt 0:08:23]} Rd7 {[%emt 0:04:13]} 25. Qd2 {[%emt 0:06:06]} Nc4 {[%emt 0:01:36]} 26. Qd3 {[%emt 0:06:10]} Rh6 {[%emt 0:01:32]} 27. Nc3 {[%emt 0:01:53]} Bd8 {[%emt 0:00:43]} 28. Qf5 {[%emt 0:02:59]} Qe6 {[%emt 0:00:57]} 29. Qxe6 {[%emt 0:01:00]} Rxe6 {[%emt 0:00:06]} 30. Bf2 {[%emt 0:00:57]} Rb6 {[%emt 0:01:03]} 31. Rxb6 {[%emt 0:01:27]} Nxb6 {[%emt 0:00:20]} 32. Re1 {[%emt 0:02:05]} Kxb7 {[%emt 0:01:08]} 33. Rb1 {[%emt 0:02:20]} Kc6 {[%emt 0:00:20]} 34. g3 {[%emt 0:01:19]} Nc4 {[%emt 0:00:31]} 35. Kg2 {[%emt 0:01:21]} f5 {[%emt 0:00:40]} 36. Re1 {[%emt 0:00:47]} a6 {[%emt 0:01:00]} 37. Re6+ {[%emt 0:00:31]} Rd6 {[%emt 0:00:16]} 38. Re8 {[%emt 0:00:56]} Kd7 {[%emt 0:00:56]} 39. Rf8 {[%emt 0:00:57]} Ke6 {[%emt 0:00:30]} 40. Re8+ {[%emt 0:00:55]} Kd7 {[%emt 0:00:35]} 1/2-1/2

[Event "Fagernes Chess Open 2025"]
[Site "Fagernes"]
[Date "2025.04.16"]
[Round "5.16"]
[White "Jullum, Hege Ibsen"]
[Black "Lien, Benjamin"]
[Result "0-1"]
[Annotator "NA RC"]
[ECO "D05"]
[WhiteElo "1484"]
[BlackElo "1733"]
[PlyCount "136"]
[EventDate "2025.04.12"]
[EventCountry "NOR"]
[SourceTitle "playchess.com"]
[Source "ChessBase"]
[SourceQuality "1"]
[TimeControl "40/6000+30:2400+30"]

1. d4 {[%emt 0:01:11]} Nf6 {[%emt 0:01:56]} 2. Nf3 {[%emt 0:00:00]} d5 {[%emt 0:00:24]} 3. e3 {[%emt 0:00:00]} c5 {[%emt 0:00:52]} 4. b3 {[%emt 0:00:01]} Nc6 {[%emt 0:01:02]} 5. Bd3 {[%emt 0:01:18]} e6 {[%emt 0:00:48]} 6. O-O {[%emt 0:02:37]} Be7 {[%emt 0:02:44]} 7. Bb2 {[%emt 0:00:16]} O-O {[%emt 0:00:30]} 8. Nbd2 {[%emt 0:01:14]} Re8 {[%emt 0:01:51]} 9. Ne5 {[%emt 0:00:31]} Nxe5 {[%emt 0:02:31]} 10. dxe5 {[%emt 0:00:08]} Nd7 {[%emt 0:00:29]} 11. f4 {[%emt 0:02:16]} Nf8 {[%emt 0:14:57]} 12. Qe2 {[%emt 0:05:42]} Bd7 {[%emt 0:00:25]} 13. Rad1 {[%emt 0:03:47]} Rc8 {[%emt 0:01:14]} 14. c4 {[%emt 0:00:30]} Bc6 {[%emt 0:06:29]} 15. Nf3 {[%emt 0:03:50]} Qc7 {[%emt 0:01:04]} 16. Rf2 {[%emt 0:01:56]} Red8 {[%emt 0:02:16]} 17. Rdf1 {[%emt 0:02:21]} d4 {[%emt 0:09:24]} 18. e4 {[%emt 0:04:30]} Nd7 {[%emt 0:05:38]} 19. Ng5 {[%emt 0:04:11]} Bxg5 {[%emt 0:04:12]} 20. fxg5 {[%emt 0:00:25]} Nxe5 {[%emt 0:00:05]} 21. Rf4 {[%emt 0:03:28]} Rd7 {[%emt 0:03:44]} 22. Rh4 {[%emt 0:04:03]} Ng6 {[%emt 0:00:49]} 23. Rg4 {[%emt 0:05:58]} a5 {[%emt 0:06:57]} 24. a4 {[%emt 0:04:47]} Rcd8 {[%emt 0:00:34]} 25. Bc1 {[%emt 0:00:27]} Qb6 {[%emt 0:06:08]} 26. e5 {[%emt 0:04:27]} Qxb3 {[%emt 0:05:25]} 27. Bxg6 {[%emt 0:01:53]} hxg6 {[%emt 0:00:26]} 28. Qf2 {[%emt 0:02:15]} Qxc4 {[%emt 0:04:58]} 29. Rf4 {[%emt 0:01:54]} Rf8 {[%emt 0:00:34]} 30. Rh4 {[%emt 0:05:33]} Qd5 {[%emt 0:02:15]} 31. Rg4 {[%emt 0:00:31]} c4 {[%emt 0:09:31]} 32. Ba3 {[%emt 0:02:09]} Rfd8 {[%emt 0:04:06]} 33. Bd6 {[%emt 0:02:05]} d3 {[%emt 0:08:02]} 34. Rd4 {[%emt 0:02:18]} Qxg2+ {[%emt 0:00:07]} 35. Qxg2 {[%emt 0:00:23]} Bxg2 {[%emt 0:00:03]} 36. Kxg2 {[%emt 0:00:11]} Rc8 {[%emt 0:01:03]} 37. Kf2 {[%emt 0:00:30]} b5 {[%emt 0:02:47]} 38. axb5 {[%emt 0:00:57]} Rb7 {[%emt 0:00:03]} 39. Rc1 {[%emt 0:02:11]} Rxb5 {[%emt 0:01:07]} 40. Rcxc4 {[%emt 0:01:03]} Rb2+ {[%emt 0:01:08]} 41. Ke3 {[%emt 0:41:02]} Rxc4 {[%emt 0:41:33]} 42. Rxc4 {[%emt 0:01:23]} d2 {[%emt 0:00:22]} 43. Ke2 {[%emt 0:02:30]} d1=Q+ {[%emt 0:00:00]} 44. Kxd1 {[%emt 0:00:00]} Rxh2 {[%emt 0:00:00]} 45. Kc1 {[%emt 0:00:00]} Rf2 {[%emt 0:00:00]} 46. Be7 {[%emt 0:00:00]} Rf5 {[%emt 0:00:00]} 47. Rc5 {[%emt 0:00:00]} f6 {[%emt 0:00:00]} 48. gxf6 {[%emt 0:00:00]} g5 {[%emt 0:00:00]} 49. fxg7 {[%emt 0:00:00]} Kxg7 {[%emt 0:00:00]} 50. Rxa5 {[%emt 0:00:00]} g4 {[%emt 0:00:00]} 51. Kd2 {[%emt 0:00:00]} g3 {[%emt 0:01:18]} 52. Bd6 {[%emt 0:00:00]} Kg6 {[%emt 0:00:28]} 53. Ra8 {[%emt 0:00:00]} Kg5 {[%emt 0:01:06]} 54. Ke3 {[%emt 0:00:00]} Kg4 {[%emt 0:00:24]} 55. Ra4+ {[%emt 0:00:00]} Kh3 {[%emt 0:00:21]} 56. Rf4 {[%emt 0:00:00]} g2 {[%emt 0:00:48]} 57. Rxf5 {[%emt 0:00:00]} exf5 {[%emt 0:01:21]} 58. Kf2 {[%emt 0:00:00]} Kh2 {[%emt 0:00:06]} 59. e6+ {[%emt 0:00:00]} Kh1 {[%emt 0:00:05]} 60. e7 {[%emt 0:00:00]} g1=Q+ {[%emt 0:00:07]} 61. Kf3 {[%emt 0:00:00]} Qg4+ {[%emt 0:00:14]} 62. Kf2 {[%emt 0:00:00]} Qe4 {[%emt 0:01:29]} 63. Kg3 {[%emt 0:00:00]} Kg1 {[%emt 0:00:35]} 64. Bc5+ {[%emt 0:00:00]} Kf1 {[%emt 0:00:08]} 65. Bd6 {[%emt 0:00:00]} Ke2 {[%emt 0:00:12]} 66. Bb4 {[%emt 0:01:42]} Qg4+ {[%emt 0:01:09]} 67. Kh2 {[%emt 0:00:18]} Kf1 {[%emt 0:00:48]} 68. e8=Q {[%emt 0:01:41]} Qg2# {[%emt 0:00:30]} 0-1